bitfinex-derivatives/quotes_SOLF0:USTF0_20250909
["timestamp","ask_amount","ask_price","bid_price","bid_amount"]
[1757379749766,0.03114513,213.44,213.4,1.69692097]
[1757379749967,0.03114513,213.44,213.41,1.69692097]
[1757379750173,0.03114513,213.44,213.43,8.12692097]
[1757379752669,0.03114513,213.44,213.43,1.69692097]
[1757379753974,0.03114513,213.44,213.43,8.12692097]
[1757379754775,0.03114513,213.44,213.38,6.43]
[1757379755066,7.68114513,213.44,213.41,1.69692097]
[1757379756575,0.03114513,213.44,213.42,6.43]
[1757379758577,0.03114513,213.44,213.43,8.12692097]
[1757379766777,0.03114513,213.44,213.38,121.0]
[1757379766974,7.75114513,213.44,213.42,1.69692097]
[1757379767579,7.75114513,213.44,213.38,121.0]
[1757379767885,7.75114513,213.44,213.38,129.11692097]
[1757379768982,0.03114513,213.44,213.42,1.69692097]
[1757379769182,0.03114513,213.44,213.43,6.42]
[1757379776099,5.19704469,213.51,213.43,6.42]
[1757379776299,5.19704469,213.53,213.49,6.39]
[1757379776599,12.91704469,213.53,213.47,6.39]
[1757379777101,5.19704469,213.53,213.47,6.39]
[1757379777300,5.19704469,213.55,213.5,6.39]
[1757379777496,5.19704469,213.55,213.49,2.65570156]
[1757379777697,12.91704469,213.55,213.51,6.39]
[1757379777891,7.81498493,213.57,213.51,6.39]
[1757379777892,5.19704469,213.54,213.51,6.39]
[1757379778098,5.19704469,213.55,213.51,6.39]
[1757379778293,5.19704469,213.55,213.5,0.03047708]
[1757379778493,5.19704469,213.55,213.51,6.39]
[1757379778797,12.91704469,213.54,213.51,6.39]
[1757379779004,7.72,213.54,213.51,6.39]
[1757379779303,5.19704469,213.55,213.51,6.39]
[1757379779597,5.19704469,213.55,213.5,0.03047708]
[1757379779802,5.19704469,213.55,213.51,6.39]
[1757379780598,7.72,213.54,213.51,6.39]
[1757379781003,12.91704469,213.54,213.5,6.42047708]
[1757379781406,7.72,213.54,213.5,0.03047708]
[1757379781700,5.19704469,213.52,213.5,0.03047708]
[1757379781999,12.91704469,213.51,213.5,0.03047708]
[1757379783203,12.91704469,213.53,213.5,0.03047708]
[1757379783801,5.19704469,213.53,213.51,6.39]
[1757379784103,7.72,213.54,213.51,6.39]
[1757379784401,5.19704469,213.55,213.5,0.03047708]
[1757379784599,5.19704469,213.52,213.5,0.03047708]
[1757379784904,12.91704469,213.51,213.5,0.03047708]
[1757379786699,0.46,213.51,213.4,121.0]
[1757379786899,7.72,213.48,213.39,130.04570156]
[1757379788502,0.03082433,213.46,213.39,130.04570156]
[1757379788807,7.72,213.45,213.39,6.39]
[1757379789001,12.93095819,213.45,213.35,147.62]
[1757379789206,12.93095819,213.45,213.35,26.62]
[1757379789401,7.72,213.44,213.35,26.62]
[1757379789900,12.93095819,213.44,213.35,26.62]
[1757379790099,12.93095819,213.43,213.35,26.62]
[1757379790294,15.58665975,213.43,213.35,6.42]
[1757379790902,15.58665975,213.43,213.28,314.98]
[1757379790903,2.65570156,213.4,213.3,6.42]
[1757379791094,7.72,213.39,213.3,6.42]
[1757379791301,12.93095819,213.39,213.3,6.42]
[1757379791801,0.03184689,213.37,213.3,6.42]
[1757379800308,7.38184689,213.37,213.3,6.42]
[1757379805514,7.35,213.36,213.27,130.07570156]
[1757379807417,7.35,213.36,213.27,127.42]
[1757379809524,7.35,213.36,213.27,121.0]
[1757379809724,7.35,213.36,213.28,6.42]
[1757379809925,0.03184689,213.37,213.29,6.42]
[1757379810126,0.03184689,213.37,213.32,6.42]
[1757379810720,0.03184689,213.37,213.31,2.65570156]
[1757379811216,0.03184689,213.37,213.34,2.65570156]
[1757379811421,0.03184689,213.37,213.35,6.42]
[1757379812619,0.03184689,213.37,213.34,2.65570156]
[1757379812821,0.03184689,213.37,213.33,6.42]
[1757379813019,0.03184689,213.37,213.32,0.0298191]
[1757379813729,7.35,213.36,213.32,0.0298191]
[1757379813924,0.03184689,213.37,213.32,0.0298191]
[1757379814133,7.35,213.36,213.32,0.0298191]
[1757379814430,0.03184689,213.37,213.32,0.0298191]
[1757379814629,7.35,213.36,213.32,0.0298191]
[1757379814824,0.03184689,213.37,213.32,0.0298191]
[1757379815029,7.35,213.36,213.32,0.0298191]
[1757379815225,0.03184689,213.37,213.32,0.0298191]
[1757379815628,7.35,213.36,213.32,0.0298191]
[1757379815833,0.03184689,213.37,213.32,0.0298191]
[1757379816222,7.35,213.36,213.32,0.0298191]
[1757379816731,0.03184689,213.37,213.32,0.0298191]
[1757379817328,7.35,213.36,213.32,0.0298191]
[1757379817734,0.03184689,213.37,213.33,6.42]
[1757379819627,0.03184689,213.37,213.32,0.0298191]
[1757379819933,0.03184689,213.37,213.34,6.42]
[1757379820128,0.03184689,213.37,213.33,2.65570156]
[1757379820934,0.03184689,213.37,213.34,6.42]
[1757379821126,0.03184689,213.37,213.33,2.65570156]
[1757379821325,0.03184689,213.37,213.34,6.42]
[1757379821524,0.03184689,213.37,213.33,2.65570156]
[1757379821733,0.03184689,213.37,213.34,6.42]
[1757379822334,0.03184689,213.37,213.34,6.44]
[1757379822632,0.03184689,213.37,213.32,2.68552066]
[1757379823028,0.03184689,213.37,213.33,6.44]
[1757379823235,7.17,213.36,213.32,0.0298191]
[1757379823434,0.03184689,213.37,213.33,6.42]
[1757379823833,0.03184689,213.37,213.32,0.0298191]
[1757379824026,0.03184689,213.37,213.33,6.42]
[1757379824431,0.03184689,213.37,213.32,0.0298191]
[1757379824639,0.03184689,213.37,213.33,6.42]
[1757379825333,0.03184689,213.37,213.32,0.0298191]
[1757379825736,0.03184689,213.37,213.33,6.42]
[1757379825937,0.03184689,213.37,213.32,0.0298191]
[1757379826138,0.03184689,213.37,213.33,6.42]
[1757379827542,0.03184689,213.37,213.32,0.0298191]
[1757379827837,0.03184689,213.37,213.33,6.42]
[1757379828037,0.03184689,213.37,213.32,0.0298191]
[1757379828238,0.03184689,213.37,213.33,6.42]
[1757379828636,0.03184689,213.37,213.32,0.0298191]
[1757379828836,7.20184689,213.37,213.33,6.42]
[1757379829033,0.03184689,213.37,213.32,0.0298191]
[1757379829240,5.24280508,213.37,213.32,0.0298191]
[1757379829441,5.21095819,213.36,213.32,0.0298191]
[1757379829637,7.17,213.35,213.32,0.0298191]
[1757379829835,7.86665975,213.36,213.32,0.0298191]
[1757379830036,7.17,213.35,213.32,0.0298191]
[1757379830236,7.86665975,213.36,213.32,0.0298191]
[1757379830437,7.17,213.35,213.32,0.0298191]
[1757379830633,5.21095819,213.36,213.33,6.42]
[1757379830837,0.03184689,213.37,213.32,0.0298191]
[1757379831043,0.03184689,213.37,213.33,6.42]
[1757379831432,0.03184689,213.37,213.32,0.0298191]
[1757379831943,0.03184689,213.37,213.33,6.42]
[1757379832744,0.03184689,213.37,213.32,2.68552066]
[1757379833241,0.03184689,213.37,213.33,6.42]
[1757379833632,0.03184689,213.37,213.32,2.68552066]
[1757379833837,0.03184689,213.37,213.33,6.42]
[1757379834235,0.03184689,213.37,213.32,2.68552066]
[1757379835139,0.03184689,213.37,213.33,6.42]
[1757379835345,0.03184689,213.37,213.32,2.68552066]
[1757379835744,0.03184689,213.37,213.33,6.42]
[1757379836345,0.03184689,213.37,213.36,1.70153903]
[1757379836648,0.03184689,213.37,213.36,8.12153903]
[1757379838447,5.21095819,213.43,213.37,6.42]
[1757379838646,5.21095819,213.43,213.41,1.70153903]
[1757379838846,12.38095819,213.43,213.37,6.42]
[1757379839042,12.38095819,213.43,213.4,1.70153903]
[1757379839749,5.21095819,213.43,213.41,6.42]
[1757379839946,5.21095819,213.44,213.42,8.12153903]
[1757379840250,5.21095819,213.44,213.43,6.42]
[1757379840438,5.21095819,213.44,213.42,1.70153903]
[1757379840748,5.21095819,213.44,213.4,6.42]
[1757379841047,5.21095819,213.44,213.42,1.70153903]
[1757379841547,5.21095819,213.45,213.42,1.70153903]
[1757379842046,7.17,213.43,213.4,1.70153903]
[1757379842248,5.21095819,213.43,213.39,0.03112529]
[1757379842442,7.17,213.42,213.39,0.03112529]
[1757379843142,7.17,213.41,213.39,0.03112529]
[1757379843344,7.17,213.4,213.39,0.03112529]
[1757379843748,12.38095819,213.4,213.39,0.03112529]
[1757379843947,7.17,213.4,213.39,0.03112529]
[1757379846245,7.63,213.4,213.39,0.03112529]
[1757379847044,7.17,213.4,213.39,0.03112529]
[1757379847946,5.22613628,213.41,213.39,0.03112529]
[1757379848147,7.17,213.4,213.39,0.03112529]
[1757379848349,12.39613628,213.4,213.39,0.03112529]
[1757379848943,7.17,213.4,213.39,0.03112529]
[1757379849141,8.87153903,213.4,213.39,0.03112529]
[1757379850346,8.87153903,213.4,213.32,1.70153903]
[1757379850549,8.87153903,213.4,213.31,6.42]
[1757379850550,12.3952518,213.37,213.31,6.42]
[1757379850950,8.87153903,213.36,213.31,6.42]
[1757379851644,7.17,213.33,213.26,1.70153903]
[1757379851850,7.17,213.33,213.23,6.45]
[1757379851851,8.87153903,213.32,213.31,0.03558053]
[1757379852148,8.87153903,213.32,213.24,1.70153903]
[1757379852149,14.09679083,213.32,213.24,1.70153903]
[1757379852549,0.03600241,213.3,213.24,1.70153903]
[1757379854152,0.03600241,213.3,213.23,6.45]
[1757379854346,7.58600241,213.3,213.25,8.16153903]
[1757379854848,7.58600241,213.3,213.26,6.46]
[1757379855044,0.03600241,213.3,213.27,1.70153903]
[1757379855246,0.03600241,213.3,213.28,6.46]
[1757379855446,0.03600241,213.3,213.29,8.16153903]
[1757379856753,5.2252518,213.37,213.3,6.46]
[1757379856952,5.2252518,213.37,213.33,8.16153903]
[1757379857153,7.55,213.36,213.33,1.70153903]
[1757379857553,7.55,213.36,213.31,8.16153903]
[1757379857754,12.7752518,213.37,213.31,8.16153903]
[1757379857954,12.7752518,213.37,213.31,8.19217042]
[1757379859457,5.2252518,213.36,213.31,8.19217042]
[1757379859655,12.7752518,213.36,213.31,8.19217042]
[1757379861058,7.55,213.35,213.31,8.19217042]
[1757379862552,5.2252518,213.37,213.33,1.70153903]
[1757379862752,5.2252518,213.38,213.34,6.46]
[1757379862956,12.7752518,213.38,213.34,6.46]
[1757379863255,7.55,213.37,213.33,1.70153903]
[1757379863757,7.55,213.37,213.33,8.16153903]
[1757379864863,5.2252518,213.37,213.33,1.70153903]
[1757379865156,7.55,213.36,213.33,1.70153903]
[1757379865861,7.55,213.36,213.33,8.16153903]
[1757379867264,5.2252518,213.39,213.36,6.46]
[1757379867565,5.2252518,213.4,213.37,8.16153903]
[1757379867765,168.36348127,213.41,213.37,8.16153903]
[1757379868160,12.7752518,213.41,213.37,8.16153903]
[1757379868560,7.55,213.4,213.36,1.70153903]
[1757379868866,7.55,213.4,213.35,0.03259146]
[1757379868867,7.55,213.39,213.35,0.03259146]
[1757379869164,115.54,213.46,213.35,0.03259146]
[1757379869165,6.92679083,213.38,213.35,0.03259146]
[1757379869365,7.55,213.36,213.35,0.03259146]
[1757379873472,5.2252518,213.39,213.36,6.46]
[1757379873672,12.7752518,213.41,213.36,8.16153903]
[1757379874171,7.55,213.4,213.36,8.16153903]
[1757379875270,5.2252518,213.41,213.36,1.70153903]
[1757379875569,5.2252518,213.4,213.35,0.03259146]
[1757379875875,7.55,213.38,213.35,0.03259146]
[1757379876375,7.55,213.38,213.35,6.49259146]
[1757379877075,5.2252518,213.4,213.35,6.49259146]
[1757379877275,7.55,213.39,213.35,6.49259146]
[1757379877971,5.2252518,213.4,213.35,0.03259146]
[1757379878178,12.7752518,213.4,213.36,6.46]
[1757379878373,5.2252518,213.4,213.36,6.46]
[1757379878575,7.55,213.39,213.35,1.73413049]
[1757379879873,7.55,213.39,213.35,8.19413049]
[1757379880682,5.2252518,213.4,213.36,6.46]
[1757379883380,5.2252518,213.4,213.35,1.73413049]
[1757379883381,5.2252518,213.4,213.37,8.15153903]
[1757379883585,5.2252518,213.42,213.39,8.15153903]
[1757379883783,5.2252518,213.43,213.39,8.15153903]
[1757379883985,12.5452518,213.44,213.39,8.15153903]
[1757379884381,12.5452518,213.44,213.39,8.18757855]
[1757379884979,5.2252518,213.44,213.39,6.48603952]
[1757379885286,12.5452518,213.44,213.4,8.15153903]
[1757379885584,5.2252518,213.44,213.41,6.45]
[1757379885774,5.2252518,213.47,213.43,6.45]
[1757379885979,5.2252518,213.47,213.42,1.70153903]
[1757379885980,12.5452518,213.48,213.45,1.70153903]
[1757379886181,7.32,213.47,213.45,1.70153903]
[1757379888378,5.2252518,213.49,213.45,1.70153903]
[1757379888583,5.2252518,213.49,213.45,8.15153903]
[1757379888584,7.32,213.49,213.45,8.15153903]
[1757379892689,7.32,213.5,213.44,0.03270917]
[1757379892878,7.32,213.48,213.44,0.03270917]
[1757379893077,7.32,213.45,213.44,0.03270917]
[1757379893277,9.02153903,213.45,213.44,0.03270917]
[1757379893483,14.24679083,213.45,213.44,0.03270917]
[1757379894694,12.5452518,213.45,213.44,0.03270917]
[1757379894986,7.32,213.45,213.44,0.03270917]
[1757379896587,5.2252518,213.46,213.44,0.03270917]
[1757379896786,12.5452518,213.49,213.45,6.45]
[1757379898393,5.2252518,213.5,213.45,6.45]
[1757379898592,7.32,213.49,213.45,6.45]
[1757379901291,5.2252518,213.5,213.45,6.45]
[1757379901496,7.32,213.49,213.45,6.45]
[1757379901792,7.32,213.48,213.44,0.03270917]
[1757379901998,5.2252518,213.49,213.44,0.03270917]
[1757379902186,7.32,213.48,213.44,0.03270917]
[1757379902491,5.2252518,213.49,213.44,0.03270917]
[1757379902897,5.2252518,213.47,213.44,0.03270917]
[1757379903096,5.2252518,213.48,213.44,6.48270917]
[1757379903299,7.32,213.47,213.44,0.03270917]
[1757379903502,7.32,213.47,213.44,6.48270917]
[1757379903795,5.2252518,213.48,213.44,6.48270917]
[1757379904394,12.5452518,213.47,213.44,6.48270917]
[1757379904795,12.5452518,213.47,213.44,0.03270917]
[1757379905598,12.5452518,213.46,213.44,0.03270917]
[1757379905798,12.5452518,213.45,213.44,0.03270917]
[1757379905998,7.32,213.45,213.44,0.03270917]
[1757379907694,7.81498493,213.47,213.44,0.03270917]
[1757379907899,5.22288385,213.46,213.44,6.48270917]
[1757379908101,5.22288385,213.47,213.44,6.48270917]
[1757379908301,5.22288385,213.47,213.44,0.03270917]
[1757379908501,5.22288385,213.48,213.45,6.45]
[1757379908694,5.22288385,213.47,213.45,6.45]
[1757379909404,5.22288385,213.47,213.46,6.45]
[1757379909591,5.22288385,213.49,213.46,6.45]
[1757379909798,5.22288385,213.5,213.47,6.45]
[1757379909998,5.22288385,213.5,213.49,9.106297]
[1757379910399,5.22288385,213.54,213.49,2.656297]
[1757379910699,7.32,213.59,213.53,6.45]
[1757379910700,5.22288385,213.55,213.53,6.45]
[1757379910905,5.22288385,213.54,213.51,6.45]
[1757379911105,5.22288385,213.55,213.51,6.45]
[1757379911297,5.22288385,213.55,213.5,2.656297]
[1757379911499,5.22288385,213.55,213.51,6.45]
[1757379911698,5.22288385,213.55,213.5,2.656297]
[1757379911900,5.22288385,213.55,213.51,6.45]
[1757379912095,12.54288385,213.55,213.51,6.45]
[1757379913104,7.32,213.55,213.51,6.45]
[1757379913506,5.22288385,213.56,213.49,0.03217268]
[1757379913706,5.22288385,213.56,213.5,6.44]
[1757379914205,5.22288385,213.57,213.5,6.44]
[1757379914403,5.22288385,213.58,213.5,6.44]
[1757379914605,12.53288385,213.59,213.5,6.44]
[1757379916104,5.22288385,213.6,213.5,6.44]
[1757379916702,5.22288385,213.6,213.53,0.03179522]
[1757379916902,5.22288385,213.6,213.54,6.44]
[1757379917603,5.22288385,213.61,213.54,6.44]
[1757379917901,7.31,213.63,213.54,6.44]
[1757379917902,12.53288385,213.63,213.55,6.44]
[1757379918102,0.03023774,213.6,213.55,6.44]
[1757379918504,0.03023774,213.6,213.54,115.38]
[1757379918803,0.03023774,213.6,213.54,6.44]
[1757379922104,0.03023774,213.6,213.57,6.72280176]
[1757379922408,0.03023774,213.6,213.58,6.44]
[1757379923104,0.03023774,213.6,213.57,6.72280176]
[1757379923311,0.03023774,213.6,213.58,6.9]
[1757379923503,0.03023774,213.6,213.59,6.44]
[1757379926917,7.31,213.67,213.59,127.44]
[1757379928110,7.31,213.73,213.62,6.44]
[1757379928411,7.31,213.73,213.63,6.44]
[1757379928807,7.31,213.73,213.66,0.02985828]
[1757379929108,7.31,213.73,213.66,6.46985828]
[1757379929616,7.31,213.78,213.67,6.44]
[1757379930406,7.31,213.78,213.7,0.03085461]
[1757379931315,7.31,213.84,213.73,6.44]
[1757379931910,7.31,213.84,213.76,0.03422865]
[1757379934207,7.31,213.84,213.76,13.19703041]
[1757379935313,7.31,213.84,213.77,6.44]
[1757379935710,7.31,213.94,213.78,35.14]
[1757379935916,7.31,213.94,213.79,6.44]
[1757379936312,7.31,213.94,213.84,0.03566438]
[1757379954421,9.95681145,213.94,213.84,0.03566438]
[1757379955728,7.31,213.94,213.84,0.03566438]
[1757379957618,7.31,213.94,213.84,2.68247583]
[1757379958323,7.18,213.92,213.87,1.6937642]
[1757379958524,7.18,213.92,213.84,0.03566438]
[1757379958724,1.6937642,213.91,213.85,1.6937642]
[1757379958924,1.6937642,213.91,213.86,0.03486582]
[1757379959128,7.18,213.9,213.86,0.03486582]
[1757379960231,8.8737642,213.88,213.77,6.42]
[1757379960427,52.83498493,213.95,213.8,1.6937642]
[1757379960428,1.6937642,213.86,213.8,1.6937642]
[1757379960621,7.18,213.86,213.8,1.6937642]
[1757379960930,7.18,213.86,213.82,1.6937642]
[1757379961224,7.18,213.88,213.85,6.46]
[1757379961425,7.18,213.9,213.85,1.6937642]
[1757379961631,7.18,213.9,213.83,1.6937642]
[1757379961829,1.6937642,213.89,213.83,1.6937642]
[1757379962027,7.18,213.88,213.82,0.03143249]
[1757379962431,7.18,213.88,213.85,1.6937642]
[1757379962724,7.18,213.9,213.85,1.6937642]
[1757379963730,7.18,213.9,213.82,0.03143249]
[1757379963731,5.22288385,213.94,213.89,1.6937642]
[1757379963931,7.18,213.94,213.89,1.6937642]
[1757379964331,5.0,213.95,213.89,1.72456907]
[1757379964533,5.0,213.95,213.89,0.03080487]
[1757379964837,5.0,213.95,213.89,1.72456907]
[1757379965027,7.18,213.94,213.89,1.72456907]
[1757379965630,10.22288385,213.95,213.89,1.72456907]
[1757379966134,12.40288385,213.94,213.89,1.72456907]
[1757379966443,14.09664805,213.92,213.89,0.03080487]
[1757379966640,7.18,213.9,213.89,0.03080487]
[1757379968040,12.40288385,213.9,213.89,0.03080487]
[1757379968831,8.8737642,213.9,213.83,1.6937642]
[1757379969037,7.18,213.88,213.83,1.6937642]
[1757379969240,5.21499593,213.88,213.83,1.6937642]
[1757379969739,7.18,213.87,213.83,1.6937642]
[1757379969934,5.21499593,213.88,213.83,1.6937642]
[1757379970134,7.18,213.86,213.83,1.6937642]
[1757379970341,7.18,213.86,213.83,8.1837642]
[1757379970537,0.03053934,213.87,213.83,8.1837642]
[1757379970743,0.03053934,213.87,213.85,1.6937642]
[1757379970942,7.21053934,213.87,213.85,1.6937642]
[1757379971141,12.42553527,213.87,213.85,1.6937642]
[1757379971743,5.24553527,213.87,213.85,1.6937642]
[1757379972339,5.24553527,213.87,213.85,8.1837642]
[1757379972540,0.03053934,213.87,213.85,1.6937642]
[1757379972844,0.03053934,213.87,213.85,8.1837642]
[1757379973035,0.03053934,213.87,213.86,6.49]
[1757379974146,5.24553527,213.87,213.86,6.49]
[1757379974346,5.24553527,213.87,213.85,1.6937642]
[1757379974542,5.24553527,213.87,213.85,8.1937642]
[1757379975243,5.21499593,213.86,213.85,8.1937642]
[1757379975648,5.24553527,213.87,213.85,8.1937642]
[1757379975849,5.24553527,213.87,213.86,6.5]
[1757379976148,0.03053934,213.87,213.86,6.5]
[1757379977142,0.03053934,213.87,213.85,1.6937642]
[1757379977347,5.25124846,213.86,213.85,8.1937642]
[1757379978143,0.03053934,213.87,213.85,8.1937642]
[1757379979448,0.03053934,213.87,213.86,6.5]
[1757379982454,17.49126286,213.99,213.86,6.96]
[1757379982656,7.11,213.98,213.95,1.6937642]
[1757379983058,1.6937642,214.02,213.95,0.13894122]
[1757379983059,7.11,213.96,213.95,0.13894122]
[1757379986359,10.38126286,213.98,213.95,0.13894122]
[1757379986561,7.11,213.97,213.93,0.03344068]
[1757379986758,10.38126286,213.98,213.94,1.6937642]
[1757379986965,7.11,213.96,213.94,1.6937642]
[1757379987964,10.38126286,213.99,213.94,1.6937642]
[1757379988359,7.11,213.98,213.94,1.6937642]
[1757379989165,10.38126286,213.99,213.94,1.6937642]
[1757379989556,7.11,213.98,213.94,1.6937642]
[1757379989755,10.38126286,213.99,213.94,1.6937642]
[1757379990166,19.18502706,213.98,213.93,0.03344068]
[1757379990362,10.38126286,213.97,213.93,0.03344068]
[1757379990762,7.11,213.96,213.93,0.03344068]
[1757379991162,10.38126286,213.98,213.93,0.03344068]
[1757379991359,7.11,213.98,213.93,0.03344068]
[1757379991564,10.38126286,213.99,213.94,1.6937642]
[1757379991965,7.11,213.98,213.94,1.6937642]
[1757379992368,10.38126286,213.99,213.94,1.6937642]
[1757379992971,7.11,213.98,213.94,1.6937642]
[1757379993174,7.11,214.0,213.94,1.6937642]
[1757379993763,7.11,214.0,213.93,0.03344068]
[1757379993973,7.11,213.98,213.93,1.72720488]
[1757379994170,8.8037642,213.99,213.93,1.72720488]
[1757379994371,7.11,213.99,213.95,8.2037642]
[1757379994570,315.17365443,214.04,213.95,8.2037642]
[1757379994571,17.49126286,214.02,213.95,8.2037642]
[1757379994772,17.49126286,214.02,213.97,1.6937642]
[1757379994972,7.11,214.01,213.97,1.6937642]
[1757379995169,7.11,214.02,213.97,1.72520725]
[1757379995673,10.38126286,214.02,213.97,1.72520725]
[1757379995873,7.11,214.01,213.97,1.72520725]
[1757379996075,12.07502706,214.03,213.97,1.72520725]
[1757379996474,7.11,214.02,213.97,1.72520725]
[1757379997276,12.07502706,214.03,213.97,1.72520725]
[1757379997473,10.38126286,214.03,213.97,0.03144305]
[1757379997667,7.11,214.03,213.97,1.72520725]
[1757379997973,7.11,214.03,213.99,8.2037642]
[1757379998174,1.6937642,214.06,213.99,8.2037642]
[1757379998175,7.11,214.07,214.01,1.6937642]
[1757379998872,116.7537642,214.08,214.02,0.03387147]
[1757379999379,7.11,214.08,214.02,1.72763567]
[1757379999879,7.11,214.07,214.04,1.6937642]
[1757380000680,115.06,214.1,214.04,1.6937642]
[1757380000879,7.11,214.09,214.04,1.6937642]
[1757380001079,7.11,214.11,214.04,1.6937642]
[1757380001777,7.11,214.09,214.04,1.6937642]
[1757380001979,7.11,214.11,214.04,1.6937642]
[1757380002175,7.11,214.11,214.02,6.53387147]
[1757380002381,14.93994739,214.09,214.03,1.6937642]
[1757380003082,7.11,214.08,214.05,1.6937642]
[1757380003282,7.57,214.08,214.02,6.53387147]
[1757380003481,7.57,214.08,214.05,1.6937642]
[1757380003883,7.57,214.08,214.05,8.1837642]
[1757380004281,7.57,214.08,214.05,1.6937642]
[1757380005883,7.57,214.08,214.05,8.1837642]
[1757380006681,0.0344935,214.09,214.07,1.6937642]
[1757380007283,7.57,214.08,214.07,1.6937642]
[1757380007484,7.57,214.08,214.05,1.6937642]
[1757380010094,7.57,214.08,214.06,1.6937642]
[1757380014285,0.0344935,214.09,214.06,1.6937642]
[1757380014683,7.57,214.08,214.06,1.6937642]
[1757380016384,7.57,214.08,214.02,0.03387147]
[1757380016684,9.2637642,214.03,214.02,0.03387147]
[1757380017684,5.20317187,214.06,214.02,0.03387147]
[1757380017886,7.57,214.05,214.02,0.03387147]
[1757380018094,7.57,214.06,214.02,0.03387147]
[1757380018291,5.20317187,214.07,214.02,0.03387147]
[1757380018485,5.20317187,214.08,214.02,0.03387147]
[1757380018685,7.57,214.06,214.02,0.03387147]
[1757380018893,7.57,214.07,214.02,0.03387147]
[1757380019088,5.20317187,214.07,214.02,0.03387147]
[1757380019395,7.57,214.06,214.02,0.03387147]
[1757380019596,7.57,214.06,214.02,6.52387147]
[1757380019897,7.57,214.06,214.03,6.49]
[1757380020491,123.33,214.1,214.02,0.03387147]
[1757380020693,7.57,214.1,214.02,0.03387147]
[1757380022098,7.57,214.07,214.02,0.03387147]
[1757380022297,7.57,214.08,214.02,0.03387147]
[1757380023001,5.20317187,214.07,214.02,0.03387147]
[1757380023196,7.57,214.06,214.02,0.03387147]
[1757380023493,5.20317187,214.07,214.02,0.03387147]
[1757380023892,7.57,214.06,214.02,0.03387147]
[1757380024097,7.57,214.06,214.03,6.49]
[1757380024492,7.57,214.06,214.02,0.03387147]
[1757380024698,7.57,214.06,214.02,6.52387147]
[1757380025398,5.20317187,214.09,214.04,2.64326812]
[1757380025596,5.20317187,214.1,214.04,9.13326812]
[1757380025801,154.99669163,214.11,214.05,2.64326812]
[1757380026498,5.20317187,214.1,214.05,2.64326812]
[1757380026699,7.57,214.09,214.05,9.13326812]
[1757380027198,147.42669163,214.11,214.06,6.49]
[1757380027502,5.20317187,214.1,214.05,2.64326812]
[1757380027698,7.57,214.09,214.06,0.03470604]
[1757380028099,7.57,214.08,214.06,0.03470604]
[1757380029097,5.20317187,214.09,214.06,0.03470604]
[1757380029493,7.57,214.07,214.06,0.03470604]
[1757380029701,12.77317187,214.07,214.06,0.03470604]
[1757380029901,7.57,214.07,214.06,0.03470604]
[1757380031304,12.78805738,214.07,214.06,0.03470604]
[1757380031697,7.57,214.07,214.06,0.03470604]
[1757380032705,12.78805738,214.07,214.06,0.03470604]
[1757380032999,7.57,214.07,214.06,0.03470604]
[1757380033301,12.79805738,214.1,214.06,0.03470604]
[1757380033602,5.21805738,214.11,214.07,6.49]
[1757380033795,12.79805738,214.11,214.07,6.49]
[1757380033993,5.21805738,214.11,214.07,6.49]
[1757380034296,7.58,214.1,214.07,2.64326812]
[1757380035103,5.21805738,214.11,214.07,9.13326812]
[1757380036097,5.21805738,214.1,214.07,9.13326812]
[1757380036801,5.21805738,214.1,214.07,2.64326812]
[1757380037002,12.79805738,214.1,214.07,2.64326812]
[1757380037204,7.58,214.09,214.06,0.03470604]
[1757380037892,5.21805738,214.1,214.06,0.03470604]
[1757380038098,5.21805738,214.09,214.06,0.03470604]
[1757380038398,7.58,214.08,214.06,0.03470604]
[1757380038799,5.21805738,214.09,214.06,0.03470604]
[1757380039103,7.58,214.08,214.06,0.03470604]
[1757380039601,5.21805738,214.09,214.06,0.03470604]
[1757380039803,12.79805738,214.07,214.06,0.03470604]
[1757380040500,7.58,214.07,214.06,0.03470604]
[1757380041203,12.79805738,214.07,214.06,0.03470604]
[1757380042196,7.58,214.07,214.06,0.03470604]
[1757380043007,12.82061163,214.07,214.06,0.03470604]